[Event "GRENKE Chess Classic 2024"]
[Site "Karlsruhe"]
[Date "2024.03.30"]
[Round "7.3"]
[White "Vachier-Lagrave, Maxime"]
[Black "Keymer, Vincent"]
[Result "1/2-1/2"]
[ECO "E46"]
[WhiteElo "2728"]
[BlackElo "2738"]
[Annotator "RC"]
[PlyCount "104"]
[EventDate "2024.03.26"]
[EventType "tourn"]
[EventCountry "GER"]
[SourceTitle "playchess.com"]
[Source "ChessBase"]
[SourceQuality "1"]
[TimeControl "2700+10"]

1. d4 {[%emt 0:00:10]} Nf6 {[%emt 0:00:02]} 2. c4 {[%emt 0:00:00]} e6 {[%emt 0:00:02]} 3. Nc3 {[%emt 0:00:00]} Bb4 {[%emt 0:00:02]} 4. e3 {[%emt 0:00:00]} O-O {[%emt 0:00:06]} 5. Bd2 {[%emt 0:00:00]} b6 {[%emt 0:01:38]} 6. Bd3 {[%emt 0:00:05]} c5 {[%emt 0:00:05]} 7. a3 {[%emt 0:04:53]} Bxc3 {[%emt 0:00:17]} 8. Bxc3 {[%emt 0:00:02]} cxd4 {[%emt 0:00:08]} 9. Bxd4 {[%emt 0:00:02]} Nc6 {[%emt 0:02:29]} 10. Bc3 {[%emt 0:00:19]} d5 {[%emt 0:01:29]} 11. Qa4 {[%emt 0:04:05]} d4 {[%emt 0:08:04]} 12. exd4 {[%emt 0:00:22]} Nxd4 {[%emt 0:00:48]} 13. O-O-O {[%emt 0:00:15]} Bd7 {[%emt 0:05:42]} 14. Qb4 {[%emt 0:00:43]} a5 {[%emt 0:03:11]} 15. Qd6 {[%emt 0:00:30]} Nb3+ {[%emt 0:00:27]} 16. Kb1 {[%emt 0:00:02]} Nc5 {[%emt 0:00:09]} 17. Bc2 {[%emt 0:03:47]} Nfe4 {[%emt 0:04:28]} 18. Qd4 {[%emt 0:03:11]} Nxc3+ {[%emt 0:00:39]} 19. Qxc3 {[%emt 0:00:03]} Qc7 {[%emt 0:04:25]} 20. Nf3 {[%emt 0:00:19]} Rfd8 {[%emt 0:00:44]} 21. Rd4 {[%emt 0:04:26]} Bc6 {[%emt 0:02:14]} 22. Rh4 {[%emt 0:02:07]} f5 {[%emt 0:00:55]} 23. Re1 {[%emt 0:03:42]} Be4 {[%emt 0:01:28]} 24. Bxe4 {[%emt 0:03:47]} Nxe4 {[%emt 0:00:02]} 25. Rhxe4 {[%emt 0:00:02]} fxe4 {[%emt 0:00:02]} 26. Rxe4 {[%emt 0:00:01]} Rac8 {[%emt 0:01:21]} 27. Ka2 Qc5 {[%emt 0:01:44]} 28. Rg4 {[%emt 0:04:00]} Rc7 {[%emt 0:00:48]} 29. Qe1 {[%emt 0:00:50]} Re7 {[%emt 0:00:17]} 30. Qe2 {[%emt 0:00:32]} Rf8 {[%emt 0:00:40]} 31. Re4 {[%emt 0:00:13]} e5 {[%emt 0:02:00]} 32. Re3 {[%emt 0:00:06]} e4 {[%emt 0:01:39]} 33. Nd2 {[%emt 0:00:27]} Rc8 {[%emt 0:00:01]} 34. Rxe4 {[%emt 0:01:48]} Rxe4 {[%emt 0:00:04]} 35. Qxe4 {[%emt 0:00:01]} h6 {[%emt 0:00:32]} 36. f3 {[%emt 0:00:31]} Kh8 {[%emt 0:01:02]} 37. Qe6 {[%emt 0:00:26]} Qc7 {[%emt 0:01:10]} 38. Kb3 {[%emt 0:00:58]} Rd8 {[%emt 0:00:05]} 39. Ne4 {[%emt 0:00:03]} Qxh2 {[%emt 0:00:06]} 40. g3 {[%emt 0:01:05]} Qe2 {[%emt 0:00:12]} 41. Ka2 {[%emt 0:00:26]} a4 {[%emt 0:00:22]} 42. Qc6 {[%emt 0:00:13]} Qxf3 {[%emt 0:00:18]} 43. Qxb6 {[%emt 0:00:03]} Re8 {[%emt 0:00:09]} 44. Nc3 {[%emt 0:00:54]} Qxg3 {[%emt 0:00:03]} 45. Nxa4 {[%emt 0:00:01]} Qd3 {[%emt 0:00:13]} 46. Qb5 {[%emt 0:00:13]} Re2 {[%emt 0:00:06]} 47. Nc5 {[%emt 0:00:34]} Qc2 {[%emt 0:00:18]} 48. Nd7 {[%emt 0:01:13]} Kh7 {[%emt 0:00:01]} 49. Nf8+ {[%emt 0:00:18]} Kg8 {[%emt 0:00:01]} 50. Nd7 {[%emt 0:00:01]} Kh7 {[%emt 0:00:26]} 51. Nf8+ {[%emt 0:00:01]} Kg8 {[%emt 0:00:01]} 52. Nd7 {[%emt 0:00:02]} Kh7 {[%emt 0:00:22]} 1/2-1/2

[Event "GRENKE Chess Classic 2024"]
[Site "Karlsruhe"]
[Date "2024.03.30"]
[Round "8.1"]
[White "Fridman, Daniel"]
[Black "Vachier-Lagrave, Maxime"]
[Result "1/2-1/2"]
[ECO "D79"]
[WhiteElo "2590"]
[BlackElo "2728"]
[Annotator "TA"]
[PlyCount "62"]
[EventDate "2024.03.26"]
[EventType "tourn"]
[EventCountry "GER"]
[SourceTitle "playchess.com"]
[Source "ChessBase"]
[SourceQuality "1"]
[TimeControl "2700+10"]

{[%evp 21,62,5,35,21,23,22,19,0,52,41,44,49,50,20,23,0,0,0,0,0,0,0,166,183,189,96,132,136,134,100,138,135,131,135,166,172,389,0,0,0,377,0,0]} 1. d4 {[%emt 0:00:02]} Nf6 {[%emt 0:00:05]} 2. Nf3 {[%emt 0:00:02]} g6 {[%emt 0:00:13]} 3. g3 {[%emt 0:00:02]} Bg7 {[%emt 0:00:06]} 4. Bg2 {[%emt 0:00:02]} d5 {[%emt 0:00:18]} 5. c4 {[%emt 0:00:02]} c6 {[%emt 0:00:06]} 6. cxd5 {[%emt 0:00:03]} cxd5 {[%emt 0:00:01]} 7. O-O {[%emt 0:00:03]} O-O {[%emt 0:00:03]} 8. Ne5 {[%emt 0:00:02]} Nc6 {[%emt 0:00:01]} 9. Nc3 {[%emt 0:00:05]} Bf5 {[%emt 0:00:02]} 10. Nxc6 {[%emt 0:00:53]} bxc6 {[%emt 0:00:05]} 11. Bf4 {[%emt 0:00:03]} Nh5 {[%emt 0:00:22]} 12. Bg5 {[%emt 0:00:02]} h6 {[%emt 0:00:22]} 13. Be3 {[%emt 0:00:03]} c5 {[%emt 0:00:02]} 14. h3 {[%emt 0:01:38] g4 is the strong threat.} (14. dxc5 d4 15. Qa4 (15. Bxa8 Qxa8 16. f3 dxc3 $19) 15... dxe3 $15 (15... dxc3 16. Rad1 $17)) (14. Bxd5 cxd4 15. Bxd4 Bxd4 16. Qxd4 e6 $16) 14... Be6 {[%emt 0:04:02]} ({Better is} 14... Rc8 $11) 15. g4 $14 {[%emt 0:02:55]} (15. dxc5 $2 d4 16. Bxh6 (16. Bxa8 $2 Qxa8 17. g4 dxc3 $19) 16... Bxh6 $19) 15... cxd4 {[%emt 0:00:01]} 16. Bxd4 {[%emt 0:00:02]} Nf6 {[%emt 0:00:02]} 17. Rb1 {[%emt 0:05:33]} Rc8 {[%emt 0:01:49]} 18. Bxf6 {[%emt 0:03:01]} Bxf6 {[%emt 0:00:12]} 19. Nxd5 {[%emt 0:00:03]} Qa5 {[%emt 0:03:55]} 20. a4 {[%emt 0:05:18]} Bxd5 {[%emt 0:03:46] A strong pair of Bishops.} 21. b4 {[%emt 0:00:06][%cal Bb2b4,Bb4a5][%mdl 32]} Bxg2 $2 {[%emt 0:00:02]} (21... Qa6 $11 22. Bxd5 (22. Qxd5 Qxa4 23. Be4 Rc3 $15) 22... Rfd8) 22. bxa5 $18 {[%emt 0:00:06]} Bxh3 {[%emt 0:00:02] [#]} 23. Rb4 {[%emt 0:08:07] Prevents Rc4.} Rfd8 {[%emt 0:00:43] [#]} 24. Rc4 $3 {[%emt 0:00:24][%mdl 512]} Rb8 {[%emt 0:01:55]} 25. Qc1 {[%emt 0:00:11]} Bxf1 {[%emt 0:00:10]} 26. Kxf1 {[%emt 0:00:14]} ({Of course not} 26. Qxf1 $6 Rb2 $11) 26... Kg7 {[%emt 0:00:13]} 27. e3 $1 {[%emt 0:00:40]} Rb2 {[%emt 0:02:32]} 28. Rc2 {[%emt 0:00:02] Wards off Rd2} Rb4 {[%emt 0:00:01] [#]} (28... Rbb8 29. a6 Rd6) 29. Rc4 $2 {[%emt 0:00:02]} (29. Rc8 $1 $18 {[%cal Rc8d8]} Rxc8 30. Qxc8) 29... Rb2 $11 {[%emt 0:00:02]} 30. Rc2 {[%emt 0:00:01][%mdl 8192] Inhibits Rd2.} (30. Rf4 $11) 30... Rb4 $18 {[%emt 0:00:01] [#]} 31. Rc4 $2 {[%emt 0:00:02]} (31. Rc8 $1 $18 {[%cal Rc8d8]} Rxc8 32. Qxc8) 31... Rb2 {Weighted Error Value: White=0.63/Black=0.34.  Loses game:     	---       	Black=1      Missed win:     	White=2     	---        Mistake:       	White=2     	Black=2      Inaccurate:     	White=1     	Black=1      OK:         	White=9     	Black=8      Best:        	White=1     	Black=4} 1/2-1/2

[Event "GRENKE Chess Classic 2024"]
[Site "Karlsruhe"]
[Date "2024.03.30"]
[Round "8.2"]
[White "Ding, Liren"]
[Black "Carlsen, Magnus"]
[Result "1/2-1/2"]
[ECO "E11"]
[WhiteElo "2762"]
[BlackElo "2830"]
[Annotator "TA"]
[PlyCount "72"]
[EventDate "2024.03.26"]
[EventType "tourn"]
[EventCountry "GER"]
[SourceTitle "playchess.com"]
[Source "ChessBase"]
[SourceQuality "1"]
[TimeControl "2700+10"]

{[%evp 19,72,20,26,31,30,2,31,27,27,20,25,15,40,26,20,12,8,11,15,-10,-6,-14,0,0,0,0,0,0,0,0,0,0,0,0,0,0,0,0,0,0,0,0,0,0,0,0,0,0,0,0,0,0,0,0,0]} 1. d4 {[%emt 0:00:13]} Nf6 {[%emt 0:00:17]} 2. c4 {[%emt 0:00:02]} e6 {[%emt 0:00:03]} 3. Nf3 {[%emt 0:00:01]} Bb4+ {[%emt 0:00:08]} 4. Bd2 {[%emt 0:00:21]} Bxd2+ {[%emt 0:00:03]} 5. Qxd2 {[%emt 0:00:02]} d5 {[%emt 0:00:08]} 6. e3 {[%emt 0:02:09]} O-O {[%emt 0:00:04]} 7. Be2 {[%emt 0:00:03]} b6 {[%emt 0:02:04]} 8. O-O {[%emt 0:00:07]} Bb7 {[%emt 0:00:23]} 9. cxd5 {[%emt 0:02:57]} Nxd5 {[%emt 0:00:03]} 10. Nc3 {[%emt 0:00:10]} Nd7 {[%emt 0:00:38]} 11. Nxd5 {[%emt 0:00:19]} Bxd5 {[%emt 0:00:02]} 12. b4 {[%emt 0:00:08]} a5 {[%emt 0:02:08]} 13. b5 {[%emt 0:02:41] White is slightly better.} Rc8 {[%emt 0:00:29]} 14. Rfc1 {[%emt 0:00:11]} c5 {[%emt 0:00:07]} 15. bxc6 {[%emt 0:00:07]} Rxc6 {[%emt 0:00:02]} 16. Rxc6 Bxc6 {[%emt 0:00:01]} 17. Rc1 {[%emt 0:00:21] The position is equal.} Qa8 {[%emt 0:00:42]} 18. Ne1 {[%emt 0:00:13]} Rc8 {[%emt 0:00:54]} 19. Bf3 {[%emt 0:00:26]} Bxf3 {[%emt 0:00:18]} 20. Nxf3 {[%emt 0:00:01]} h6 {[%emt 0:01:06]} 21. h3 {[%emt 0:00:07]} Rc6 {[%emt 0:02:07]} 22. Qb2 {[%emt 0:03:06]} b5 {[%emt 0:03:36]} 23. Rxc6 {[%emt 0:00:20]} Qxc6 $11 {[%emt 0:00:03][%mdl 4096] Endgame. KQN-KQN} 24. Qa3 {[%emt 0:00:00]} a4 {[%emt 0:00:26]} 25. Qe7 {[%emt 0:00:03]} f6 {[%emt 0:01:59]} 26. Ne1 {[%emt 0:06:23]} Nf8 {[%emt 0:07:39] [#] Strongly threatening ...Qc3.} 27. Nd3 {[%emt 0:03:12]} Qc4 {[%emt 0:01:27]} 28. Nb4 {[%emt 0:00:42]} Qc1+ {[%emt 0:06:23]} 29. Kh2 {[%emt 0:00:01]} Qd2 {[%emt 0:00:02]} 30. Nc6 {Hoping for Nd8.} Qxf2 {[%emt 0:00:11]} 31. Qe8 {[%emt 0:00:45] [#] Threatening mate with Ne7+.} Qxe3 {[%emt 0:00:02]} 32. Ne7+ {[%emt 0:00:01]} Kh7 {[%emt 0:00:01]} 33. Qxf8 {[%emt 0:00:02][%csl Ge7][%cal Rf8g8]} Qf4+ {[%emt 0:00:01]} 34. Kh1 {[%emt 0:00:07][%csl Ge7][%cal Rf8g8]} Qf1+ {[%emt 0:00:02]} 35. Kh2 {[%emt 0:00:00][%csl Ge7][%cal Rf8g8]} Qf4+ {[%emt 0:00:01]} 36. Kh1 {[%emt 0:00:02][%csl Ge7][%cal Rf8g8]} Qf1+ {[%emt 0:00:13] An interesting draw.   Weighted Error Value: White=0.02 (flawless) /Black=0.02 (flawless) .  Inaccurate:     	---       	Black=1      OK:         	White=14    	Black=8      Best:        	White=2     	Black=5} 1/2-1/2

[Event "GRENKE Chess Classic 2024"]
[Site "Karlsruhe"]
[Date "2024.03.30"]
[Round "8.3"]
[White "Keymer, Vincent"]
[Black "Rapport, Richard"]
[Result "0-1"]
[ECO "A67"]
[WhiteElo "2738"]
[BlackElo "2720"]
[Annotator "TA"]
[PlyCount "72"]
[EventDate "2024.03.26"]
[EventType "tourn"]
[EventCountry "GER"]
[SourceTitle "playchess.com"]
[Source "ChessBase"]
[SourceQuality "1"]
[TimeControl "2700+10"]

{[%evp 16,72,53,30,23,37,33,28,37,24,26,28,52,44,51,47,46,0,0,0,0,0,13,-18,-14,-13,-26,-7,0,-8,-31,-58,-65,-73,-14,-18,-34,-145,-139,-136,-127,-126,-133,-139,-79,-89,-63,-103,-95,-118,-75,-29989,-29990,-29990,-29991,-29991,-29992,-29996,-29997]} 1. d4 {[%emt 0:00:05]} Nf6 {[%emt 0:00:08]} 2. c4 {[%emt 0:00:01]} e6 {[%emt 0:00:44]} 3. Nc3 {[%emt 0:00:02]} c5 {[%emt 0:00:01]} 4. d5 {[%emt 0:00:02]} exd5 {[%emt 0:00:01]} 5. cxd5 {[%emt 0:00:01]} d6 {[%emt 0:00:01]} 6. e4 {[%emt 0:00:01]} g6 {[%emt 0:00:01]} 7. f4 {[%emt 0:00:02]} Bg7 {[%emt 0:00:01]} 8. Bb5+ {[%emt 0:00:03]} Nfd7 {[%emt 0:00:04]} 9. a4 {[%emt 0:00:02]} Na6 {[%emt 0:00:04]} 10. Nf3 {[%emt 0:00:29]} Nb4 {[%emt 0:00:02]} 11. O-O {[%emt 0:01:39]} a6 {[%emt 0:00:01] White has an edge.} 12. Bxd7+ {[%emt 0:04:21]} Bxd7 {[%emt 0:00:03] [#]} 13. f5 $1 {[%emt 0:02:18]} O-O {[%emt 0:00:04]} 14. Bg5 {[%emt 0:02:18]} f6 {[%emt 0:00:01]} 15. Bf4 {[%emt 0:00:57]} gxf5 {[%emt 0:00:02]} 16. Qd2 {[%emt 0:04:12]} (16. Nd2 $14 {feels stronger.}) 16... Re8 $11 {[%emt 0:03:57]} 17. Rae1 {[%emt 0:01:12]} c4 {[%emt 0:03:32]} (17... fxe4 18. Nxe4 Bxa4 19. Nd4 (19. Bxd6 $2 Rxe4 20. Rxe4 Qxd6 $19) (19. Nxd6 Rxe1 20. Rxe1 Qd7 $11) 19... cxd4 20. Qxb4 $14) 18. exf5 {[%emt 0:01:50]} (18. Bxd6 $2 Qb6+ 19. Nd4 Nd3 $19 (19... Qxd6 $2 20. Nxf5 Bxf5 21. exf5 $19)) 18... Rxe1 {[%emt 0:00:20]} 19. Nxe1 {[%emt 0:03:07]} (19. Qxe1 {is more complex.} Nd3 20. Qe3 Bxf5 21. Nd4) 19... Bxf5 {[%emt 0:01:24]} 20. Bxd6 {[%emt 0:01:14]} Qxd6 {[%emt 0:05:38]} 21. Rxf5 {[%emt 0:00:01]} Re8 {[%emt 0:00:07]} 22. g3 {[%emt 0:07:07]} Qd7 {[%emt 0:02:14]} 23. Rf1 {[%emt 0:05:39]} f5 $1 {[%emt 0:02:04]} 24. d6 {[%emt 0:02:29]} b5 {[%emt 0:06:55]} (24... Re6 $17 25. Qf4 Qc6 (25... Qxd6 26. Qxc4 Qd4+ 27. Qxd4 $15)) 25. axb5 {[%emt 0:01:10]} axb5 {[%emt 0:00:01]} 26. Ne2 {[%emt 0:03:30]} ({White should play} 26. Nd1 $15 Qa7+ 27. Kg2) 26... Re6 $1 $17 {[%emt 0:03:43] Black has more active pieces.} 27. Rxf5 {[%emt 0:03:01][%cal Of5g5] [#]} Rxe2 $1 {[%emt 0:02:52][%mdl 512]} 28. Qxe2 {[%emt 0:00:01]} Qxf5 {[%emt 0:00:02]} 29. Qe8+ {[%emt 0:00:01]} Bf8 {[%emt 0:02:55]} (29... Qf8 $142 $1 {[%cal Rf8e8]} 30. Qxb5 Bd4+ (30... Qxd6 31. Qxc4+ Nd5 32. Nd3 $17) 31. Kg2 Qf2+ (31... Qxd6 32. Qxc4+ Kg7 33. Nf3 $17) 32. Kh3 Qf1+ 33. Ng2 Bf6) 30. d7 {[%emt 0:00:01]} Nc6 {[%emt 0:00:06]} 31. d8=Q {Prevents Qd5.} Nxd8 {[%emt 0:00:02]} 32. Qxd8 {[%emt 0:00:48]} b4 {[%emt 0:02:07]} 33. Qd1 $2 {[%emt 0:02:07][%mdl 8192] Now White is beyond hope.} (33. Kg2 $17) 33... Bc5+ $1 {[%emt 0:00:33] Black mates.} 34. Kg2 {[%emt 0:00:00] [#]} Qf2+ $1 {[%emt 0:00:01]} 35. Kh3 {[%emt 0:00:01]} Qf1+ {[%emt 0:00:02]} (35... Qxb2 $2 {too greedy.} 36. Qd5+ Kg7 37. Qg5+ (37. Qxc5 Qb1 $18) 37... Kf7 38. Qxc5 $18) 36. Kg4 {[%emt 0:00:32] [#]} h5+ $1 {[%emt 0:00:01][%mdl 512] Weighted Error Value: White=0.40/Black=0.09 (flawless) .  Loses game:     	White=1     	---        Mistake:       	White=2     	Black=2      Inaccurate:     	White=3     	Black=1      OK:         	White=12    	Black=10     Best:        	White=3     	Black=1      Strong:       	---       	Black=3} 0-1

[Event "GRENKE Chess Classic 2024"]
[Site "Karlsruhe"]
[Date "2024.03.31"]
[Round "9.1"]
[White "Ding, Liren"]
[Black "Fridman, Daniel"]
[Result "1/2-1/2"]
[ECO "D45"]
[WhiteElo "2762"]
[BlackElo "2590"]
[Annotator "TA"]
[PlyCount "104"]
[EventDate "2024.03.26"]
[EventType "tourn"]
[EventCountry "GER"]
[SourceTitle "playchess.com"]
[Source "ChessBase"]
[SourceQuality "1"]
[TimeControl "2700+10"]

{[%evp 14,104,10,0,0,0,0,0,12,12,15,6,13,-15,0,0,0,0,0,-28,-29,-36,-38,-44,-41,-24,-18,-38,-36,-33,52,56,40,58,27,0,0,0,0,0,0,0,0,-14,-20,-10,-14,-8,-8,-8,-8,-8,-8,-8,-8,-8,-8,-8,-8,-8,-8,-8,-8,-8,-8,-8,-8,-8,-8,-8,-8,-8,-1,-8,-8,-8,-8,-8,-8,-8,-8,-8,-3,-3,-3,-3,-3,-3,-3,-8,0,-8,0]} 1. c4 {[%emt 0:00:02]} e6 {[%emt 0:00:02]} 2. Nc3 {[%emt 0:00:41]} d5 {[%emt 0:00:02]} 3. d4 {[%emt 0:00:01]} c6 {[%emt 0:00:01]} 4. e3 {[%emt 0:01:08]} Nf6 {[%emt 0:00:02]} 5. Nf3 {[%emt 0:00:01]} Nbd7 {[%emt 0:00:02]} 6. Be2 {[%emt 0:00:01]} Bd6 {[%emt 0:00:02]} 7. O-O {[%emt 0:00:02]} O-O {[%emt 0:00:02]} 8. b3 {[%emt 0:00:04]} b6 {[%emt 0:00:10]} 9. Bb2 {[%emt 0:00:01]} Bb7 {[%emt 0:00:01]} 10. a4 {[%emt 0:00:18]} Rc8 {[%emt 0:01:33] [#]} 11. a5 $1 {[%emt 0:00:14]} bxa5 {[%emt 0:00:13]} 12. c5 {[%emt 0:06:20]} Bc7 {[%emt 0:00:09]} 13. Ra4 {[%emt 0:00:43][%mdl 1024] White has compensation.} Rb8 {[%emt 0:03:33]} 14. Qc2 {[%emt 0:01:29]} Qc8 {[%emt 0:01:47]} 15. Re1 {[%emt 0:01:07]} Ba6 {[%emt 0:01:02]} 16. Bd1 {[%emt 0:02:00]} Re8 {[%emt 0:07:52]} 17. e4 {[%emt 0:00:10] Strongly threatening e5.} e5 {[%emt 0:03:13] And now ...exd4 would win.} 18. exd5 {[%emt 0:00:13]} exd4 {[%emt 0:00:03]} 19. d6 {[%emt 0:04:29]} Rxe1+ {[%emt 0:09:39]} 20. Nxe1 {[%emt 0:00:01]} Qe8 {[%emt 0:00:03][%cal Re8e1] [#]} 21. Ne4 {[%emt 0:05:24]} (21. dxc7 $2 Qxe1#) 21... Bd8 {[%emt 0:05:27]} (21... Bxd6 $15 22. cxd6 Nxe4 (22... Qxe4 23. Qxe4 Nxe4 24. Rxa5 $15) 23. Rxd4 (23. Qxc6 $2 Nec5 $19) 23... Rb4 (23... Nxd6 24. Nf3 $14)) 22. Rxd4 $14 {[%emt 0:01:45]} Rb4 $1 {[%emt 0:00:59]} 23. Rxb4 {[%emt 0:01:01]} axb4 {[%emt 0:00:02]} 24. Nxf6+ {[%emt 0:00:05]} Bxf6 {[%emt 0:00:21] The position is equal.} 25. Nf3 {[%emt 0:00:02]} Bxb2 {[%emt 0:03:48]} 26. Qxb2 {[%emt 0:00:00]} Qe4 {[%emt 0:00:02]} 27. Qd2 {[%emt 0:02:45] Prevents Qd3} Qd3 {[%emt 0:02:04]} 28. Qxd3 {[%emt 0:00:21]} Bxd3 $11 {[%emt 0:00:02][%mdl 4096] Endgame. KBN-KBN} 29. Nd4 {[%emt 0:00:01]} Be4 {[%emt 0:00:02][%cal Og8f8] ...Kf8! is the strong threat.} 30. Bf3 $1 {[%emt 0:00:11]} Bxf3 {[%emt 0:00:05]} (30... Nxc5 $2 {is the wrong capture.} 31. Bxe4 (31. Nxc6 Bxc6 32. Bxc6 Kf8 $17) (31. d7 Nxd7 32. Bxe4 c5 $18) 31... h6 32. Nxc6 $18 (32. Bxc6 Kf8 $18)) 31. gxf3 {[%emt 0:00:01]} Nxc5 {[%emt 0:00:13] Hoping for ...Kf8.} 32. Nxc6 {[%emt 0:00:00] KN-KN} Kf8 {[%emt 0:00:04] White must now prevent ...Ke8.} 33. Nxa7 {[%emt 0:00:02]} Nxb3 {[%emt 0:00:15]} 34. Nc6 {[%emt 0:00:01][%cal Od6d7] Against Nd4. d7! would kill now.} Ke8 {[%emt 0:00:01]} 35. Nxb4 {[%emt 0:00:02]} Kd7 {[%emt 0:00:12]} 36. Kg2 {[%emt 0:00:27]} Kxd6 {[%emt 0:00:04]} 37. f4 {[%emt 0:00:01]} Nd4 {[%emt 0:00:05]} 38. Kg3 {[%emt 0:00:08]} Ke6 {[%emt 0:00:07]} 39. Kg4 {[%emt 0:00:11]} g6 {[%emt 0:00:03]} 40. Nd3 {[%emt 0:00:22]} h5+ {[%emt 0:00:04]} 41. Kg3 {[%emt 0:00:06]} Kf5 {[%emt 0:00:20]} 42. Ne5 {[%emt 0:00:00]} f6 {[%emt 0:00:15]} 43. Nd7 {[%emt 0:00:03]} Ne6 {[%emt 0:00:35]} 44. Kf3 {[%emt 0:00:03]} h4 {[%emt 0:00:02]} 45. Ke3 {[%emt 0:00:23]} Nc7 {[%emt 0:01:40]} 46. Ke2 {[%emt 0:00:14]} Nd5 {[%emt 0:01:01][%cal Of5g4]} (46... Kxf4 47. Nxf6 Kf5 48. Nd7) 47. Kf3 {[%emt 0:00:01]} h3 {[%emt 0:00:07]} 48. Kg3 {[%emt 0:01:25]} Nxf4 {[%emt 0:00:05]} 49. f3 {[%emt 0:00:19]} g5 {[%emt 0:00:02]} 50. Nc5 {[%emt 0:00:02]} Ke5 {[%emt 0:00:29]} 51. Nd7+ {[%emt 0:00:06]} Kf5 {[%emt 0:00:02]} 52. Nc5 {[%emt 0:00:01]} Ke5 {Weighted Error Value: White=0.03 (flawless) /Black=0.05 (flawless) .  Mistake:       	---       	Black=1      Inaccurate:     	White=3     	---        OK:         	White=23    	Black=20     Best:        	White=4     	---        Strong:       	White=1     	Black=1} 1/2-1/2